bitfinex/quotes_BTCUSD_20241117
["timestamp","ask_amount","ask_price","bid_price","bid_amount"]
[1731831843806,0.31949355,90554.0,90553.0,0.0008568]
[1731831844031,0.40019355,90554.0,90553.0,0.0008568]
[1731831844243,0.44639355,90554.0,90553.0,0.0008568]
[1731831846563,0.49795202,90554.0,90553.0,0.0008568]
[1731831847001,0.49795202,90554.0,90517.0,0.01267814]
[1731831847002,0.005,90548.0,90510.0,0.07694867]
[1731831847204,0.110464,90527.0,90518.0,0.110474]
[1731831847417,0.10906255,90526.0,90519.0,0.110473]
[1731831847616,0.10906255,90526.0,90520.0,0.00793135]
[1731831847819,0.10906255,90526.0,90521.0,0.03922962]
[1731831848022,0.10906255,90526.0,90521.0,0.05077861]
[1731831848225,0.10906255,90526.0,90522.0,0.02062544]
[1731831848637,0.10906255,90526.0,90523.0,0.02424177]
[1731831848841,0.10906255,90526.0,90524.0,0.02532569]
[1731831849047,0.10906255,90526.0,90525.0,0.00793135]
[1731831849286,0.10906255,90526.0,90525.0,0.01154638]
[1731831849489,0.21952755,90526.0,90525.0,0.01154638]
[1731831849723,0.21952755,90526.0,90525.0,0.00793135]
[1731831851114,0.10906255,90526.0,90525.0,0.02104162]
[1731831851339,0.10906255,90526.0,90525.0,0.00793135]
[1731831851771,0.10906255,90526.0,90525.0,0.0079373]
[1731831851979,0.10906255,90526.0,90525.0,0.01155233]
[1731831852816,0.10906255,90526.0,90525.0,0.01240873]
[1731831853706,0.33135,90539.0,90528.0,0.110462]
[1731831853925,0.16549168,90530.0,90529.0,0.02149449]
[1731831854136,0.10906255,90538.0,90529.0,0.02149449]
[1731831854137,0.220906,90536.0,90529.0,0.0079373]
[1731831854367,0.220906,90536.0,90525.0,0.0008564]
[1731831854368,0.10906255,90535.0,90530.0,0.0079373]
[1731831854576,0.10906255,90535.0,90531.0,0.0079373]
[1731831854784,0.110457,90533.0,90532.0,0.0079373]
[1731831854998,0.21951955,90533.0,90532.0,0.0157653]
[1731831855204,0.21951955,90533.0,90532.0,0.00786469]
[1731831855415,0.21951955,90533.0,90527.0,0.01258503]
[1731831855711,0.21951955,90533.0,90532.0,0.00364484]
[1731831855933,0.21951955,90533.0,90532.0,0.00786665]
[1731831856163,0.21951955,90533.0,90532.0,0.02601304]
[1731831858285,0.21951955,90533.0,90532.0,0.02410361]
[1731831858500,0.21951955,90533.0,90532.0,0.01151149]
[1731831858719,0.21951955,90533.0,90532.0,0.02045936]
[1731831859986,0.21951955,90533.0,90532.0,0.00786665]
[1731831861980,0.21151955,90533.0,90532.0,0.00786665]
[1731831864524,0.21151955,90533.0,90532.0,0.00872305]
[1731831864969,0.21151955,90533.0,90532.0,0.0008564]
[1731831865194,0.21151955,90533.0,90532.0,0.00872637]
[1731831865422,0.21151955,90533.0,90532.0,0.0008564]
[1731831865642,0.21151955,90533.0,90532.0,0.00872625]
[1731831867345,0.21151955,90533.0,90532.0,0.00872645]
[1731831869188,0.44431955,90533.0,90532.0,0.00872645]
[1731831869420,0.54322202,90533.0,90532.0,0.0008564]
[1731831869683,0.59267325,90533.0,90532.0,0.0008564]
[1731831869916,0.44431955,90533.0,90532.0,0.0008564]
[1731831870126,0.67653673,90533.0,90532.0,0.0008564]
[1731831870354,1.04213208,90533.0,90532.0,0.0008564]
[1731831871055,1.00771984,90533.0,90532.0,0.0008564]
[1731831871477,1.00971984,90533.0,90532.0,0.0008564]
[1731831871720,1.00800226,90533.0,90532.0,0.0008564]
[1731831872144,0.84431621,90533.0,90532.0,0.0008564]
[1731831872583,1.00801866,90533.0,90532.0,0.0008564]
[1731831872792,0.80992021,90533.0,90532.0,0.0008564]
[1731831872993,0.84430915,90533.0,90532.0,0.0008564]
[1731831873218,0.80992021,90533.0,90532.0,0.0008564]
[1731831873446,1.008013,90533.0,90532.0,0.0008564]
[1731831873669,1.010013,90533.0,90532.0,0.0008564]
[1731831873881,0.81192021,90533.0,90532.0,0.0008564]
[1731831874098,0.80992021,90533.0,90532.0,0.0008564]
[1731831874306,0.44631955,90533.0,90532.0,0.0008564]
[1731831874723,0.59487982,90533.0,90532.0,0.0008564]
[1731831874853,1.00999743,90533.0,90532.0,0.0008564]
[1731831875051,0.81193121,90533.0,90532.0,0.0008564]
[1731831875256,1.00999743,90533.0,90532.0,0.0008564]
[1731831875471,0.81193121,90533.0,90532.0,0.0008564]
[1731831876011,0.81364441,90533.0,90532.0,0.0008564]
[1731831876346,1.01169462,90533.0,90532.0,0.0008564]
[1731831876554,0.81361989,90533.0,90532.0,0.0008564]
[1731831877215,1.00367892,90533.0,90532.0,0.0008564]
[1731831877642,0.8380112,90533.0,90532.0,0.0008564]
[1731831878075,0.80361989,90533.0,90532.0,0.0008564]
[1731831878281,1.03607713,90533.0,90532.0,0.0008564]
[1731831878902,0.83802125,90533.0,90532.0,0.0008564]
[1731831879321,0.99667577,90533.0,90532.0,0.0008564]
[1731831879508,1.03107574,90533.0,90532.0,0.0008564]
[1731831879731,0.83301986,90533.0,90532.0,0.0008564]
[1731831880157,0.46743272,90533.0,90532.0,0.0008564]
[1731831880584,0.58152674,90533.0,90532.0,0.0008564]
[1731831880800,0.43303275,90533.0,90532.0,0.0008564]
[1731831881003,0.46743521,90533.0,90532.0,0.0008564]
[1731831881225,0.61590034,90533.0,90532.0,0.0008564]
[1731831882427,0.58149788,90533.0,90532.0,0.0008564]
[1731831882807,0.43303275,90533.0,90532.0,0.0008564]
[1731831884978,0.53198524,90533.0,90532.0,0.0008564]
[1731831885204,0.43303275,90533.0,90532.0,0.0008564]
[1731831885413,0.53198524,90533.0,90532.0,0.0008564]
[1731831885834,0.5319869,90533.0,90532.0,0.0008564]
[1731831886464,0.30523275,90533.0,90532.0,0.0008564]
[1731831888219,0.30523275,90533.0,90532.0,0.0003564]
[1731831888435,0.4041869,90533.0,90532.0,0.0003564]
[1731831889311,0.30523275,90533.0,90532.0,0.0003564]
[1731831890233,0.44866398,90533.0,90532.0,0.0003564]
[1731831890512,0.44857902,90533.0,90532.0,0.0003564]
[1731831890718,0.45357902,90533.0,90532.0,0.0003564]
[1731831892090,0.36430224,90533.0,90532.0,0.0003564]
[1731831892313,0.58143958,90533.0,90532.0,0.0003564]
[1731831892560,0.69189658,90533.0,90532.0,0.0003564]
[1731831892783,1.01443191,90533.0,90532.0,0.0003564]
[1731831893020,0.93506356,90533.0,90532.0,0.0003564]
[1731831893234,1.18260772,90533.0,90532.0,0.0003564]
[1731831894112,1.18460772,90533.0,90532.0,0.0003564]
[1731831895259,0.93705409,90533.0,90532.0,0.0003564]
[1731831899986,0.93505409,90533.0,90532.0,0.0003564]
[1731831900403,1.18269694,90533.0,90532.0,0.0003564]
[1731831900642,0.93505409,90533.0,90532.0,0.0003564]
[1731831900845,1.18269694,90533.0,90532.0,0.0003564]
[1731831901072,0.93505409,90533.0,90532.0,0.0003564]
[1731831901566,0.93705409,90533.0,90532.0,0.0003564]
[1731831901988,1.18471113,90533.0,90532.0,0.0003564]
[1731831902213,0.72128701,90533.0,90532.0,0.0003564]
[1731831902446,0.91943392,90533.0,90532.0,0.01287768]
[1731831902657,0.91943392,90533.0,90532.0,0.0003564]
[1731831902658,0.72128701,90533.0,90532.0,0.0003564]
[1731831902870,0.50424824,90533.0,90532.0,0.0003564]
[1731831903320,0.72138252,90533.0,90532.0,0.0003564]
[1731831903739,0.35563265,90533.0,90532.0,0.0003564]
[1731831904182,0.72139439,90533.0,90532.0,0.0003564]
[1731831904387,0.35563265,90533.0,90532.0,0.0003564]
[1731831904591,0.50427377,90533.0,90532.0,0.0003564]
[1731831905235,0.35563265,90533.0,90532.0,0.0003564]
[1731831905893,0.50430605,90533.0,90532.0,0.0003564]
[1731831907199,0.50430605,90533.0,90532.0,0.01287768]
[1731831907200,0.49630605,90533.0,90532.0,0.01287768]
[1731831907421,0.34763265,90533.0,90532.0,0.01287768]
[1731831907666,0.31323275,90533.0,90532.0,0.01287768]
[1731831908283,0.46192821,90533.0,90532.0,0.01287768]
[1731831908729,0.31323275,90533.0,90532.0,0.01287768]
[1731831909008,0.31323275,90533.0,90532.0,0.12333568]
[1731831909009,0.10087095,90533.0,90532.0,0.12333568]
[1731831909227,0.0017132,90533.0,90532.0,0.18099021]
[1731831909664,0.0017132,90533.0,90532.0,0.19359819]
[1731831910119,0.0017132,90533.0,90532.0,0.27129819]
[1731831914574,0.0017132,90533.0,90532.0,0.16084019]
[1731831914785,0.0017132,90533.0,90532.0,0.27129819]
[1731831916957,0.0017132,90533.0,90532.0,0.2712615]
[1731831920172,0.0017132,90533.0,90532.0,0.27125397]
[1731831921249,0.1121692,90533.0,90532.0,0.03679597]
[1731831921465,0.1121692,90533.0,90532.0,0.0116921]
[1731831921681,0.0017132,90533.0,90532.0,0.11867756]
[1731831921907,0.0017132,90533.0,90532.0,0.16797756]
[1731831922117,0.110442,90545.0,90540.0,0.110448]
[1731831922348,0.10906255,90544.0,90541.0,0.01947151]
[1731831922570,0.10906255,90544.0,90541.0,0.02252287]
[1731831922802,0.21950555,90544.0,90541.0,0.02252287]
[1731831923077,0.21950555,90544.0,90542.0,0.0438149]
[1731831923499,0.10906255,90544.0,90543.0,0.00304778]
[1731831923719,0.21950555,90544.0,90543.0,0.00304778]
[1731831923934,0.10906255,90544.0,90542.0,0.0438149]
[1731831924166,0.21950555,90544.0,90543.0,0.02431665]
[1731831924606,0.21950555,90544.0,90543.0,0.00304778]
[1731831924812,0.11077575,90544.0,90538.0,0.11045]
[1731831925033,0.110444,90543.0,90539.0,0.0764]
[1731831925269,0.10906255,90542.0,90539.0,0.0764]
[1731831925493,0.10906255,90542.0,90540.0,0.110448]
[1731831925734,0.10906255,90542.0,90541.0,0.04920241]
[1731831926141,0.0017132,90544.0,90541.0,0.04920241]
[1731831926357,0.10906255,90543.0,90541.0,0.04920241]
[1731831926567,0.0017132,90544.0,90541.0,0.04920241]
[1731831926794,0.0017132,90544.0,90543.0,0.110444]
[1731831927029,0.0017132,90544.0,90543.0,0.13418706]
[1731831927239,0.0017132,90544.0,90543.0,0.12632536]
[1731831927455,0.0017132,90544.0,90543.0,0.18008778]
[1731831927930,0.0017132,90544.0,90543.0,0.19267052]
[1731831930913,0.0017132,90544.0,90543.0,0.19569152]
[1731831933712,0.0017132,90544.0,90543.0,0.21142409]
[1731831936847,0.0017132,90544.0,90543.0,0.10098009]
[1731831937065,0.110443,90544.0,90543.0,0.04020402]
[1731831937303,0.110443,90544.0,90543.0,0.05593659]
[1731831937953,0.110441,90546.0,90543.0,0.02130166]
[1731831938204,0.38008288,90548.0,90543.0,0.02130166]
[1731831938205,0.110443,90545.0,90544.0,0.01258274]
[1731831938445,0.110443,90545.0,90544.0,0.03362043]
[1731831938891,0.21950555,90545.0,90544.0,0.02044516]
[1731831939110,0.26610555,90545.0,90544.0,0.00786242]
[1731831939809,0.26610555,90545.0,90543.0,0.0008565]
[1731831939810,0.288043,90544.0,90543.0,0.0008565]
[1731831940013,0.39710555,90544.0,90543.0,0.0008565]
[1731831951928,0.38910555,90544.0,90543.0,0.0008565]
[1731831956938,0.31150555,90544.0,90543.0,0.0008565]
[1731831957395,0.31150555,90544.0,90543.0,0.02827406]
[1731831957878,0.31150555,90544.0,90543.0,0.0008565]
[1731831960672,0.21150555,90544.0,90543.0,0.0008565]
[1731831960887,0.10906255,90544.0,90543.0,0.11915685]
[1731831961119,0.10906255,90544.0,90543.0,0.01195392]
[1731831961333,0.10906255,90544.0,90543.0,0.04366602]
[1731831961546,0.10906255,90544.0,90543.0,0.01195392]
[1731831961762,0.10906255,90544.0,90543.0,0.00871285]
[1731831961997,0.10906255,90544.0,90543.0,0.00409757]
[1731831962636,0.21950555,90544.0,90543.0,0.01195488]
[1731831962857,0.21950555,90544.0,90543.0,0.03262188]
[1731831963077,0.21950555,90544.0,90543.0,0.00871381]
[1731831963078,0.29900555,90544.0,90543.0,0.00871381]
[1731831963948,0.29900555,90544.0,90543.0,0.00871587]
[1731831964398,0.39900555,90544.0,90543.0,0.0008565]
[1731831965044,0.44486577,90544.0,90543.0,0.0008565]
[1731831965260,0.49606577,90544.0,90543.0,0.0008565]
[1731831965500,0.64446674,90544.0,90543.0,0.0008565]
[1731831965715,0.86126142,90544.0,90543.0,0.0008565]
[1731831966615,0.64444254,90544.0,90543.0,0.0008565]
[1731831966844,0.63944254,90544.0,90543.0,0.0008565]
[1731831967063,0.63144254,90544.0,90543.0,0.0008565]
[1731831967504,0.48306577,90544.0,90543.0,0.0008565]
[1731831968186,0.50606577,90544.0,90543.0,0.0008565]
[1731831970839,0.50606577,90544.0,90515.0,0.220957]
[1731831970840,0.1,90539.0,90515.0,0.220957]
[1731831971081,0.110467,90525.0,90517.0,0.110475]
[1731831971306,0.110469,90523.0,90518.0,0.02046102]
[1731831971514,0.110469,90523.0,90519.0,0.02046102]
[1731831971733,0.110469,90523.0,90520.0,0.0183343]
[1731831971980,0.110469,90523.0,90521.0,0.01259199]
[1731831972180,0.110469,90523.0,90520.0,0.0183343]
[1731831972391,0.110469,90523.0,90521.0,0.01259533]
[1731831972614,0.110469,90523.0,90522.0,0.01259533]
[1731831973018,0.110469,90523.0,90522.0,0.02046645]
[1731831973493,0.21953155,90523.0,90522.0,0.02046645]
[1731831973894,0.21953155,90523.0,90522.0,0.00787112]
[1731831974122,0.21953155,90523.0,90522.0,0.02046554]
[1731831974355,0.21953155,90523.0,90522.0,0.00787112]
[1731831974591,0.21953155,90523.0,90522.0,0.00872732]
[1731831974792,0.21953155,90523.0,90522.0,0.0008562]
[1731831975002,0.21953155,90523.0,90522.0,0.00869857]
[1731831975221,0.21953155,90523.0,90522.0,0.0008562]
[1731831977479,0.24253155,90523.0,90522.0,0.0008562]
[1731831978123,0.34253155,90523.0,90522.0,0.0008562]
[1731831978533,0.38673506,90523.0,90522.0,0.0008562]
[1731831979569,0.34253155,90523.0,90522.0,0.0008562]
[1731831981963,0.33453155,90523.0,90522.0,0.0008562]
[1731831982167,0.31153155,90523.0,90522.0,0.0008562]
[1731831983953,0.31153155,90523.0,90522.0,0.0007882]
[1731831984384,0.31153155,90523.0,90522.0,0.01191472]
[1731831984641,0.31153155,90523.0,90522.0,0.0007882]
[1731831985776,0.1,90523.0,90522.0,0.0007882]
[1731831985970,0.220917,90532.0,90522.0,0.0007882]
[1731831985971,0.1,90533.0,90522.0,0.0007882]
[1731831986193,0.110466,90525.0,90522.0,0.0086217]
[1731831986398,0.110467,90524.0,90523.0,0.0162498]
[1731831986624,0.110467,90524.0,90523.0,0.01316298]
[1731831986855,0.110463,90528.0,90523.0,0.0240767]
[1731831987089,0.10906255,90527.0,90524.0,0.0078335]
[1731831987500,0.005,90545.0,90524.0,0.0078335]
[1731831987501,0.5464,90543.0,90524.0,0.0078335]
[1731831987711,0.5464,90543.0,90529.0,0.110461]
[1731831987712,0.27594568,90536.0,90529.0,0.110461]
[1731831987924,0.10906255,90535.0,90530.0,0.04673316]
[1731831988132,0.10906255,90535.0,90530.0,0.04981704]
[1731831988396,0.21951755,90535.0,90531.0,0.00783333]
[1731831988616,0.10906255,90535.0,90532.0,0.01835061]
[1731831988832,0.10906255,90535.0,90532.0,0.00308168]
[1731831989035,0.10906255,90535.0,90531.0,0.00783333]
[1731831989260,0.10906255,90535.0,90533.0,0.00308095]
[1731831989468,0.220896,90541.0,90534.0,0.01213733]
[1731831989469,0.1,90540.0,90534.0,0.01213733]
[1731831989707,0.21951155,90539.0,90534.0,0.00308022]
[1731831989915,0.21951155,90539.0,90535.0,0.03548294]
[1731831990337,0.21951155,90539.0,90536.0,0.00308168]
[1731831990552,0.21951155,90539.0,90537.0,0.00783333]
[1731831990753,0.21951155,90539.0,90538.0,0.00783333]
[1731831990754,0.10906255,90539.0,90538.0,0.00783333]
[1731831990983,0.0017124,90544.0,90538.0,0.01091355]
[1731831991222,0.0017124,90544.0,90539.0,0.03743416]
[1731831991223,0.10906255,90543.0,90539.0,0.03743416]
[1731831991432,0.10906255,90543.0,90539.0,0.04049602]
[1731831991648,0.0017124,90544.0,90541.0,0.110446]
[1731831992063,0.0017124,90544.0,90542.0,0.00305966]
[1731831992325,0.0017124,90544.0,90543.0,0.03548294]
[1731831992749,0.0017124,90544.0,90543.0,0.2328433]
[1731831993383,0.0017124,90544.0,90543.0,0.24067691]
[1731831993842,0.0017124,90544.0,90543.0,0.0460356]
[1731831994932,0.0017124,90544.0,90543.0,0.05856993]
[1731831995344,0.1121554,90544.0,90543.0,0.05856993]
[1731831995583,0.1121554,90544.0,90543.0,0.02308699]
[1731831995814,0.1121554,90544.0,90543.0,0.01055266]
[1731831996017,0.1121554,90544.0,90543.0,0.00783361]
[1731831996267,0.0017124,90544.0,90543.0,0.01051994]
[1731831996473,0.0017124,90544.0,90543.0,0.02386877]
[1731831996696,0.0017124,90544.0,90543.0,0.02412561]
[1731831996926,0.1041544,90545.0,90543.0,0.02412561]
[1731831997133,0.110443,90545.0,90544.0,0.00783361]
[1731831997345,0.110443,90545.0,90544.0,0.02129107]
[1731831997832,0.110443,90545.0,90544.0,0.0239774]
[1731831998073,0.001713,90546.0,90544.0,0.00783361]
[1731831998313,0.001713,90546.0,90544.0,0.01051994]
[1731831998529,0.001713,90546.0,90544.0,0.12096194]
[1731831998761,0.001713,90546.0,90545.0,0.00783361]
[1731831998971,0.001713,90546.0,90545.0,0.15270816]
[1731831999185,0.001713,90546.0,90545.0,0.15539622]
[1731832000060,0.001713,90546.0,90545.0,0.04495422]
[1731832000266,0.001713,90546.0,90545.0,0.15539622]
[1731832001132,0.001713,90546.0,90545.0,0.15537957]
[1731832001361,0.001713,90546.0,90545.0,0.16319652]
[1731832003380,0.001713,90546.0,90545.0,0.05275452]
[1731832004467,0.001713,90546.0,90545.0,0.04493757]
[1731832004678,0.001713,90546.0,90545.0,0.05275118]
[1731832005814,0.001713,90546.0,90545.0,0.16319318]
[1731832006637,0.001713,90546.0,90545.0,0.05275118]
[1731832007270,0.001713,90546.0,90545.0,0.04493422]
[1731832007481,0.001713,90546.0,90545.0,0.15537622]
[1731832007698,0.001713,90546.0,90545.0,0.0527491]
[1731832007921,0.001713,90546.0,90545.0,0.04493549]
[1731832011060,0.001713,90546.0,90545.0,0.03712061]
[1731832011234,0.001713,90546.0,90545.0,0.0449399]
[1731832011677,0.001713,90546.0,90545.0,0.1553819]
[1731832011884,0.001713,90546.0,90545.0,0.16815436]
[1731832012095,0.110436,90550.0,90545.0,0.16815436]
[1731832012096,0.1058614,90550.0,90545.0,0.05771236]
[1731832012310,0.220861,90555.0,90546.0,0.03847051]
[1731832012524,0.110437,90550.0,90547.0,0.00781929]
[1731832012732,0.11077535,90554.0,90548.0,0.00781929]
[1731832012905,0.11077535,90554.0,90548.0,0.00807612]
[1731832013168,0.110436,90550.0,90549.0,0.02398789]
[1731832013375,0.110436,90550.0,90549.0,0.02692367]
[1731832013583,0.110436,90550.0,90549.0,0.01075507]
[1731832013804,0.220865,90553.0,90549.0,0.00807612]
[1731832014021,0.110436,90550.0,90549.0,0.00025683]
[1731832014231,0.110436,90550.0,90549.0,0.03736573]
[1731832014437,0.110436,90550.0,90549.0,0.00808204]
[1731832014642,0.110436,90550.0,90549.0,0.01075839]
[1731832014913,0.110435,90551.0,90549.0,0.02060391]
[1731832015130,0.11077535,90554.0,90549.0,0.02060391]
[1731832015390,0.110435,90551.0,90550.0,0.02691116]
[1731832015605,0.110435,90551.0,90550.0,0.02716799]
[1731832015822,0.110435,90551.0,90550.0,0.03701351]
[1731832016029,0.110435,90551.0,90550.0,0.04751225]
[1731832016928,0.03,90552.0,90550.0,0.1316665]
[1731832017137,0.140433,90552.0,90551.0,0.01588095]
[1731832017321,0.140433,90552.0,90551.0,0.03179563]
[1731832017561,0.140433,90552.0,90551.0,0.04747091]
[1731832017985,0.140433,90552.0,90551.0,0.054853]
[1731832018650,0.140433,90552.0,90551.0,0.03650419]
[1731832019749,0.140433,90552.0,90551.0,0.03917772]
[1731832019949,0.140433,90552.0,90551.0,0.03650419]
[1731832020371,0.140433,90552.0,90551.0,0.03917771]
[1731832021039,0.140433,90552.0,90551.0,0.05173326]
[1731832021256,0.140433,90552.0,90551.0,0.03652596]
[1731832022373,0.140433,90552.0,90551.0,0.02064501]
[1731832022592,0.262633,90552.0,90551.0,0.02064501]
[1731832022804,0.262633,90552.0,90551.0,0.00025682]
[1731832023047,0.262633,90552.0,90551.0,0.0128068]
[1731832023272,0.262633,90552.0,90551.0,0.02064957]
[1731832023895,0.37169555,90552.0,90551.0,0.02064957]
[1731832024313,0.37169555,90552.0,90534.0,0.110455]
[1731832024314,0.005,90551.0,90530.0,0.21426748]
[1731832024519,0.005,90551.0,90522.0,0.0007882]
[1731832024520,0.10906255,90550.0,90534.0,0.110455]
[1731832024722,0.11045,90539.0,90534.0,0.110455]
[1731832024965,0.110447,90541.0,90535.0,0.01519954]
[1731832025183,0.110447,90541.0,90536.0,0.01255171]
[1731832025388,0.110447,90541.0,90537.0,0.01255171]
[1731832025644,0.220892,90542.0,90538.0,0.04752381]
[1731832025872,0.110449,90539.0,90538.0,0.0349721]
[1731832026322,0.110449,90539.0,90510.0,0.30512225]
[1731832026323,0.0455,90536.0,90516.0,0.0989386]
[1731832026523,0.0455,90536.0,90514.0,0.0008565]
[1731832026524,0.110469,90523.0,90514.0,0.0008565]
[1731832026770,0.110469,90523.0,90514.0,0.1113365]
[1731832026990,0.212935,90525.0,90518.0,0.19462825]
[1731832027219,0.212935,90525.0,90518.0,0.08415425]
[1731832027220,0.110469,90523.0,90518.0,0.08415425]
[1731832027435,0.110469,90523.0,90522.0,0.02033014]
[1731832027634,0.212935,90525.0,90522.0,0.02033014]
[1731832027829,0.220921,90530.0,90523.0,0.01247876]
[1731832028100,0.32998555,90529.0,90522.0,0.0007882]
[1731832028325,0.110469,90523.0,90522.0,0.0007882]
[1731832028524,0.110468,90524.0,90522.0,0.01326143]
[1731832028654,0.110469,90523.0,90522.0,0.0007882]
[1731832028852,0.110469,90523.0,90522.0,0.01326133]
[1731832029243,0.110469,90523.0,90522.0,0.0007882]
[1731832031875,0.110469,90523.0,90522.0,0.00904996]
[1731832032066,0.110469,90523.0,90522.0,0.0007882]
[1731832032271,0.110469,90523.0,90522.0,0.01209324]
[1731832032477,0.110469,90523.0,90522.0,0.02270677]
[1731832032681,0.110469,90523.0,90522.0,0.02575037]
[1731832035957,0.0455,90524.0,90522.0,0.02575037]
[1731832036261,0.0455,90524.0,90522.0,0.0038318]
[1731832036392,0.110469,90523.0,90522.0,0.0038318]
[1731832036598,0.110469,90523.0,90522.0,0.01161306]
[1731832036809,0.110469,90523.0,90522.0,0.00856946]
[1731832037215,0.0455,90524.0,90522.0,0.00856946]
[1731832037419,0.0455,90524.0,90523.0,0.02093086]
[1731832037599,0.0455,90524.0,90523.0,0.02399512]
[1731832038297,0.155967,90524.0,90523.0,0.00778126]
[1731832038734,0.155967,90524.0,90522.0,0.0007882]
[1731832038735,0.1275,90524.0,90522.0,0.0007882]
[1731832038933,0.19106255,90529.0,90523.0,0.09193409]
[1731832039147,0.110466,90525.0,90524.0,0.00927223]
[1731832039323,0.19106255,90529.0,90524.0,0.00927223]
[1731832039324,0.110466,90526.0,90524.0,0.02011926]
[1731832039524,0.110466,90525.0,90524.0,0.01556337]
[1731832039732,0.110467,90524.0,90523.0,0.08415425]
[1731832039902,0.110467,90524.0,90523.0,0.09660319]
[1731832040106,0.110467,90524.0,90523.0,0.03932983]
[1731832040309,0.110467,90524.0,90523.0,0.02721848]
[1731832040515,0.110467,90524.0,90523.0,0.04278185]
[1731832040759,0.110467,90524.0,90523.0,0.07438155]
[1731832040910,0.19106255,90529.0,90523.0,0.07438155]
[1731832041113,0.19106255,90529.0,90524.0,0.01901539]
[1731832041316,0.110467,90525.0,90523.0,0.02381983]
[1731832041492,0.110467,90525.0,90524.0,0.01320556]
[1731832041704,0.19106255,90529.0,90524.0,0.04466991]
[1731832041917,0.110464,90527.0,90525.0,0.03146435]
[1731832042123,0.110464,90527.0,90526.0,0.04705736]
[1731832042536,0.18306255,90529.0,90526.0,0.04705736]
[1731832042537,0.110458,90533.0,90526.0,0.03927379]
[1731832042742,0.156858,90532.0,90527.0,0.01590108]
[1731832042990,0.156858,90532.0,90526.0,0.0077797]
[1731832042991,0.0464,90532.0,90528.0,0.01590108]
[1731832043258,0.0464,90532.0,90529.0,0.00899671]
[1731832043259,0.11046,90530.0,90529.0,0.00899671]
[1731832043887,0.11046,90530.0,90529.0,0.02144578]
[1731832044097,0.11046,90530.0,90529.0,0.02922548]
[1731832044718,0.11046,90530.0,90529.0,0.02922544]
[1731832044719,0.21952255,90530.0,90529.0,0.02922544]
[1731832044883,0.30152255,90530.0,90529.0,0.0055447]
[1731832045124,0.30152255,90530.0,90529.0,0.01244991]
[1731832045125,0.52244355,90530.0,90529.0,0.01244991]
[1731832045348,0.52244355,90530.0,90529.0,0.02023014]
[1731832045516,0.52244355,90530.0,90529.0,0.00778023]
[1731832048221,0.30152255,90530.0,90529.0,0.00778375]
[1731832048423,0.30152255,90530.0,90529.0,0.02802684]
[1731832048803,0.30152255,90530.0,90529.0,0.02024309]
[1731832049030,0.30323535,90530.0,90529.0,0.02024309]
[1731832050309,0.110465,90527.0,90520.0,0.110472]
[1731832050506,0.10906255,90529.0,90523.0,0.06830356]
[1731832050720,0.11023231,90527.0,90524.0,0.01171401]
[1731832050951,0.11023231,90527.0,90525.0,0.02222033]
[1731832051165,0.11023231,90527.0,90526.0,0.0385064]
[1731832051375,0.11023231,90527.0,90526.0,0.03118861]
[1731832051523,0.11023231,90527.0,90526.0,0.05368638]
[1731832051737,0.11023231,90527.0,90526.0,0.0697387]
[1731832052580,0.10906255,90529.0,90526.0,0.0697387]
[1731832052795,0.10906255,90529.0,90527.0,0.05993483]
[1731832053027,0.10906255,90529.0,90528.0,0.04409476]
[1731832053242,0.10906255,90529.0,90528.0,0.0475468]
[1731832053522,0.10906255,90529.0,90528.0,0.05026438]
[1731832054046,0.0017128,90530.0,90528.0,0.05026438]
[1731832054254,0.0017128,90530.0,90529.0,0.17859233]
[1731832054721,0.0017128,90530.0,90529.0,0.17863659]
[1731832055182,0.0017128,90530.0,90529.0,0.1735528]
[1731832055398,0.0017128,90530.0,90529.0,0.15716024]
[1731832055608,0.0017128,90530.0,90529.0,0.19697589]
[1731832056064,0.0017128,90530.0,90529.0,0.01535447]
[1731832056471,0.0017128,90530.0,90529.0,0.12581547]
[1731832057008,0.16420448,90536.0,90531.0,0.110458]
[1731832057209,0.16420448,90536.0,90532.0,0.01947432]
[1731832057411,0.0454,90539.0,90532.0,0.02204287]
[1731832057615,0.10906255,90538.0,90532.0,0.02204287]
[1731832057893,0.21951355,90538.0,90533.0,0.01433597]
[1731832058089,0.21951355,90538.0,90533.0,0.12479197]
[1731832058090,0.10906255,90538.0,90533.0,0.12479197]
[1731832058438,0.21951355,90538.0,90534.0,0.00256855]
[1731832058656,0.10906255,90538.0,90535.0,0.01947432]
[1731832058853,0.21951355,90538.0,90535.0,0.01947432]
[1731832059058,0.10906255,90538.0,90536.0,0.00256725]
[1731832059447,0.10906255,90538.0,90535.0,0.01947432]
[1731832059625,0.10906255,90538.0,90536.0,0.01433597]
[1731832060370,0.0454,90539.0,90536.0,0.01433597]
[1731832060635,0.38634768,90557.0,90549.0,0.110437]
[1731832060636,0.0017122,90552.0,90549.0,0.110437]
[1731832060833,0.0017122,90552.0,90537.0,0.00477098]
[1731832060834,0.0017122,90552.0,90550.0,0.0110437]
[1731832061035,0.0017122,90552.0,90551.0,0.110435]
[1731832061491,0.0017122,90552.0,90551.0,0.11298589]
[1731832061718,0.0017122,90552.0,90551.0,0.00255089]
[1731832061922,0.0017122,90552.0,90551.0,0.02531748]
[1731832062364,0.0017122,90552.0,90551.0,0.02276659]
[1731832062775,0.0017122,90552.0,90551.0,0.00255089]
[1731832063202,0.22120775,90552.0,90551.0,0.00255089]
[1731832063412,0.22120775,90552.0,90540.0,0.110447]
[1731832063413,0.11077475,90552.0,90540.0,0.110447]
[1731832063649,0.11077475,90552.0,90535.0,0.30506125]
[1731832063650,0.110443,90545.0,90536.0,0.110453]
[1731832063875,0.0805,90544.0,90541.0,0.0025574]
[1731832064099,0.0492,90542.0,90531.0,0.225916]
[1731832064325,0.0492,90542.0,90535.0,0.110454]
[1731832064529,0.159646,90542.0,90532.0,0.110458]
[1731832064766,0.0492,90542.0,90534.0,0.220911]
[1731832064983,0.0492,90542.0,90540.0,0.110447]
[1731832065201,0.0492,90542.0,90536.0,0.110452]
[1731832065419,0.0492,90542.0,90534.0,0.220911]
[1731832065420,0.0492,90542.0,90539.0,0.110449]
[1731832065857,0.0492,90542.0,90540.0,0.110448]
[1731832066118,0.0492,90542.0,90541.0,0.01246047]
[1731832066333,0.0492,90542.0,90541.0,0.12290747]
[1731832066771,0.0492,90542.0,90541.0,0.01245916]
[1731832067007,0.0492,90542.0,90541.0,0.02367835]
[1731832067471,0.0492,90542.0,90541.0,0.13412535]
[1731832068137,0.0492,90542.0,90541.0,0.15005819]
[1731832068360,0.0492,90542.0,90541.0,0.14161966]
[1731832068603,0.159645,90542.0,90541.0,0.03117266]
[1731832070165,0.0492,90542.0,90541.0,0.03117266]
[1731832070370,0.04896735,90542.0,90541.0,0.03117266]
[1731832070579,0.15941235,90542.0,90541.0,0.03117266]
[1731832070800,0.04896735,90542.0,90541.0,0.03117266]